[Event "Titled Tuesday Blitz July 18 Early 2023"]
[White "Urbina Perez, Juan Antonio"]
[Black "Firouzja, Alireza"]
[WhiteFideId "2217368"]
[BlackFideId "12573981"]
[WhiteElo "2519"]
[BlackElo "3100"]
[Result "0-1"]
[Round "1"]
[TimeControl "180+2"]
[Date "2023.07.18"]
[WhiteClock "0:00:12"]
[BlackClock "0:02:29"]
[Board "3"]

1. e4 {[%clk 0:02:59]}  c5 {[%clk 0:02:59]} 2. Nf3 {[%clk 0:02:58]}  d6 {[%clk 0:03:00]} 3. Bb5+ {[%clk 0:02:58]}  Nd7 {[%clk 0:03:00]} 4. d4 {[%clk 0:02:58]}  a6 {[%clk 0:03:00]} 5. Bxd7+ {[%clk 0:02:57]}  Bxd7 {[%clk 0:03:01]} 6. Nc3 {[%clk 0:02:57]}  e6 {[%clk 0:02:59]} 7. O-O {[%clk 0:02:56]}  cxd4 {[%clk 0:02:58]} 8. Qxd4 {[%clk 0:02:56]}  Rc8 {[%clk 0:02:58]} 9. a4 {[%clk 0:02:50]}  Ne7 {[%clk 0:02:53]} 10. Bg5 {[%clk 0:02:42]}  f6 {[%clk 0:02:53]} 11. Be3 {[%clk 0:02:40]}  Nc6 {[%clk 0:02:53]} 12. Qd2 {[%clk 0:02:39]}  Be7 {[%clk 0:02:53]} 13. Rfd1 {[%clk 0:02:38]}  O-O {[%clk 0:02:53]} 14. Bf4 {[%clk 0:02:36]}  Ne5 {[%clk 0:02:53]} 15. Nxe5 {[%clk 0:02:31]}  fxe5 {[%clk 0:02:54]} 16. Be3 {[%clk 0:02:28]}  Bc6 {[%clk 0:02:53]} 17. f3 {[%clk 0:02:27]}  Qe8 {[%clk 0:02:53]} 18. a5 {[%clk 0:02:23]}  Qg6 {[%clk 0:02:53]} 19. Kh1 {[%clk 0:02:13]}  Kh8 {[%clk 0:02:53]} 20. Rf1 {[%clk 0:02:06]}  Rfd8 {[%clk 0:02:46]} 21. Bb6 {[%clk 0:01:43]}  Rd7 {[%clk 0:02:46]} 22. Qe2 {[%clk 0:01:42]}  Bf6 {[%clk 0:02:45]} 23. Rad1 {[%clk 0:01:39]}  d5 {[%clk 0:02:46]} 24. f4 {[%clk 0:01:15]}  d4 {[%clk 0:02:45]} 25. f5 {[%clk 0:00:45]}  exf5 {[%clk 0:02:29]} 26. exf5 {[%clk 0:00:46]}  Qh6 {[%clk 0:02:29]} 27. Ne4 {[%clk 0:00:42]}  Bb5 {[%clk 0:02:30]} 28. Qf3 {[%clk 0:00:37]}  Bxf1 {[%clk 0:02:30]} 29. Rxf1 {[%clk 0:00:38]}  Rxc2 {[%clk 0:02:29]} 30. Nc5 {[%clk 0:00:32]}  Re7 {[%clk 0:02:29]} 31. b3 {[%clk 0:00:30]}  Rc1 {[%clk 0:02:28]} 32. h3 {[%clk 0:00:26]}  e4 {[%clk 0:02:27]} 33. Qf2 {[%clk 0:00:20]}  e3 {[%clk 0:02:28]} 34. Qf3 {[%clk 0:00:17]}  Rxf1+ {[%clk 0:02:29]} 35. Qxf1 {[%clk 0:00:17]}  e2 {[%clk 0:02:30]} 36. Qe1 {[%clk 0:00:12]}  Qh4 {[%clk 0:02:29]} 0-1


[Site "https://www.chess.com"]

[Event "Titled Tuesday Blitz July 18 Early 2023"]
[White "Dubov, Daniil"]
[Black "ArchibaldCerveza29"]
[WhiteFideId "24126055"]
[WhiteElo "3088"]
[BlackElo "2518"]
[Result "1-0"]
[Round "1"]
[TimeControl "180+2"]
[Date "2023.07.18"]
[WhiteClock "0:02:25"]
[BlackClock "0:00:45"]
[Board "4"]

1. e4 {[%clk 0:03:00]}  e5 {[%clk 0:02:58]} 2. Nf3 {[%clk 0:03:00]}  Nc6 {[%clk 0:02:58]} 3. Nc3 {[%clk 0:03:01]}  Nf6 {[%clk 0:02:58]} 4. Bc4 {[%clk 0:03:01]}  Nxe4 {[%clk 0:02:57]} 5. O-O {[%clk 0:03:01]}  Nxc3 {[%clk 0:02:49]} 6. dxc3 {[%clk 0:03:02]}  Be7 {[%clk 0:02:40]} 7. Qd5 {[%clk 0:02:59]}  O-O {[%clk 0:02:40]} 8. Nxe5 {[%clk 0:02:59]}  Nxe5 {[%clk 0:02:41]} 9. Qxe5 {[%clk 0:02:59]}  c6 {[%clk 0:02:38]} 10. Re1 {[%clk 0:02:54]}  Bf6 {[%clk 0:02:35]} 11. Qd6 {[%clk 0:02:54]}  Re8 {[%clk 0:02:25]} 12. Rxe8+ {[%clk 0:02:46]}  Qxe8 {[%clk 0:02:26]} 13. Bf4 {[%clk 0:02:46]}  Qe4 {[%clk 0:01:56]} 14. Bb3 {[%clk 0:02:35]}  Be7 {[%clk 0:01:44]} 15. Qd2 {[%clk 0:02:35]}  Bf8 {[%clk 0:01:28]} 16. Re1 {[%clk 0:02:34]}  Qf5 {[%clk 0:01:23]} 17. Re8 {[%clk 0:02:28]}  b6 {[%clk 0:00:45]} 18. Qd6 {[%clk 0:02:25]} 1-0


[Site "https://www.chess.com"]

[Event "Titled Tuesday Blitz July 18 Early 2023"]
[White "Martinez Alcantara, Jose Eduardo"]
[Black "Horak, Martin"]
[WhiteFideId "3805662"]
[BlackFideId "367095"]
[WhiteElo "3025"]
[BlackElo "2514"]
[Result "1-0"]
[Round "1"]
[TimeControl "180+2"]
[Date "2023.07.18"]
[WhiteClock "0:01:08"]
[BlackClock "0:00:01"]
[Board "8"]

1. e4 {[%clk 0:02:59]}  c5 {[%clk 0:02:59]} 2. Nf3 {[%clk 0:03:00]}  Nc6 {[%clk 0:02:55]} 3. Bb5 {[%clk 0:02:58]}  Nf6 {[%clk 0:02:53]} 4. Nc3 {[%clk 0:02:56]}  Qc7 {[%clk 0:02:47]} 5. Bxc6 {[%clk 0:02:54]}  Qxc6 {[%clk 0:02:42]} 6. Qe2 {[%clk 0:02:49]}  d6 {[%clk 0:02:41]} 7. d4 {[%clk 0:02:48]}  cxd4 {[%clk 0:02:41]} 8. Nxd4 {[%clk 0:02:49]}  Qc7 {[%clk 0:02:41]} 9. Be3 {[%clk 0:02:48]}  a6 {[%clk 0:02:39]} 10. O-O-O {[%clk 0:02:48]}  e6 {[%clk 0:02:28]} 11. f3 {[%clk 0:02:48]}  Be7 {[%clk 0:02:28]} 12. g4 {[%clk 0:02:48]}  b5 {[%clk 0:02:25]} 13. Qd2 {[%clk 0:02:46]}  b4 {[%clk 0:02:16]} 14. Nce2 {[%clk 0:02:45]}  Rb8 {[%clk 0:02:07]} 15. Kb1 {[%clk 0:02:45]}  a5 {[%clk 0:02:04]} 16. h4 {[%clk 0:02:45]}  Nd7 {[%clk 0:01:56]} 17. h5 {[%clk 0:02:44]}  Ne5 {[%clk 0:01:52]} 18. b3 {[%clk 0:02:44]}  h6 {[%clk 0:01:49]} 19. Rhg1 {[%clk 0:02:42]}  Ba6 {[%clk 0:01:27]} 20. f4 {[%clk 0:02:37]}  Nd7 {[%clk 0:01:22]} 21. Ng3 {[%clk 0:02:29]}  a4 {[%clk 0:01:17]} 22. f5 {[%clk 0:02:27]}  e5 {[%clk 0:01:14]} 23. Nf3 {[%clk 0:02:19]}  Nc5 {[%clk 0:01:07]} 24. f6 {[%clk 0:02:05]}  Bxf6 {[%clk 0:00:47]} 25. Qxd6 {[%clk 0:02:04]}  Rc8 {[%clk 0:00:35]} 26. Qxc7 {[%clk 0:01:39]}  Rxc7 {[%clk 0:00:36]} 27. Rd5 {[%clk 0:01:40]}  Ne6 {[%clk 0:00:32]} 28. Ra5 {[%clk 0:01:28]}  Bb7 {[%clk 0:00:25]} 29. Rxa4 {[%clk 0:01:28]}  Be7 {[%clk 0:00:17]} 30. Nxe5 {[%clk 0:01:26]}  O-O {[%clk 0:00:17]} 31. Nc4 {[%clk 0:01:22]}  Nc5 {[%clk 0:00:07]} 32. Ra7 {[%clk 0:01:20]}  Rfc8 {[%clk 0:00:05]} 33. Nf5 {[%clk 0:01:19]}  Bf8 {[%clk 0:00:05]} 34. Bf4 {[%clk 0:01:18]}  Rc6 {[%clk 0:00:02]} 35. Bd6 {[%clk 0:01:13]}  Nxe4 {[%clk 0:00:02]} 36. Bxf8 {[%clk 0:01:11]}  Kxf8 {[%clk 0:00:03]} 37. Rxb7 {[%clk 0:01:11]}  Nc3+ {[%clk 0:00:02]} 38. Kb2 {[%clk 0:01:12]}  Ra6 {[%clk 0:00:02]} 39. a3 {[%clk 0:01:08]}  Nd5 {[%clk 0:00:01]} 1-0


[Site "https://www.chess.com"]

[Event "Titled Tuesday Blitz July 18 Early 2023"]
[White "Yeritsyan, Hayk"]
[Black "Sarana, Alexey"]
[WhiteFideId "13307320"]
[BlackFideId "24133795"]
[WhiteElo "2513"]
[BlackElo "3021"]
[Result "0-1"]
[Round "1"]
[TimeControl "180+2"]
[Date "2023.07.18"]
[WhiteClock "0:00:08"]
[BlackClock "0:00:56"]
[Board "9"]

1. d4 {[%clk 0:02:58]}  Nf6 {[%clk 0:02:45]} 2. Nf3 {[%clk 0:02:57]}  g6 {[%clk 0:02:43]} 3. Bf4 {[%clk 0:02:57]}  Bg7 {[%clk 0:02:43]} 4. h3 {[%clk 0:02:58]}  d6 {[%clk 0:02:43]} 5. e3 {[%clk 0:02:58]}  Nbd7 {[%clk 0:02:43]} 6. c3 {[%clk 0:02:59]}  O-O {[%clk 0:02:44]} 7. Be2 {[%clk 0:02:59]}  Re8 {[%clk 0:02:44]} 8. O-O {[%clk 0:03:00]}  a5 {[%clk 0:02:31]} 9. Na3 {[%clk 0:02:56]}  b6 {[%clk 0:02:26]} 10. Bh2 {[%clk 0:02:56]}  Bb7 {[%clk 0:02:26]} 11. Rc1 {[%clk 0:02:54]}  e5 {[%clk 0:02:26]} 12. Nc4 {[%clk 0:02:54]}  e4 {[%clk 0:02:24]} 13. Nfd2 {[%clk 0:02:54]}  a4 {[%clk 0:02:24]} 14. Na3 {[%clk 0:02:53]}  h5 {[%clk 0:02:15]} 15. c4 {[%clk 0:02:53]}  Nf8 {[%clk 0:02:09]} 16. Nb5 {[%clk 0:02:51]}  Ne6 {[%clk 0:02:06]} 17. Nc3 {[%clk 0:02:47]}  Qd7 {[%clk 0:02:04]} 18. a3 {[%clk 0:02:44]}  c5 {[%clk 0:01:51]} 19. d5 {[%clk 0:02:29]}  Nc7 {[%clk 0:01:48]} 20. Qc2 {[%clk 0:02:28]}  b5 {[%clk 0:01:48]} 21. Nxb5 {[%clk 0:02:20]}  Nxb5 {[%clk 0:01:46]} 22. cxb5 {[%clk 0:02:20]}  Bxd5 {[%clk 0:01:45]} 23. Nc4 {[%clk 0:02:15]}  Bxc4 {[%clk 0:01:44]} 24. Bxc4 {[%clk 0:02:15]}  d5 {[%clk 0:01:44]} 25. Be2 {[%clk 0:02:15]}  c4 {[%clk 0:01:44]} 26. Rfd1 {[%clk 0:02:15]}  Qxb5 {[%clk 0:01:44]} 27. Rd2 {[%clk 0:02:06]}  Qb3 {[%clk 0:01:28]} 28. Qb1 {[%clk 0:01:51]}  Re6 {[%clk 0:01:26]} 29. Rcd1 {[%clk 0:01:40]}  Ra7 {[%clk 0:01:24]} 30. Qc1 {[%clk 0:01:29]}  Rb7 {[%clk 0:01:24]} 31. g4 {[%clk 0:01:22]}  hxg4 {[%clk 0:01:24]} 32. hxg4 {[%clk 0:01:20]}  Bh6 {[%clk 0:01:18]} 33. Kg2 {[%clk 0:00:52]}  Bg5 {[%clk 0:01:18]} 34. Re1 {[%clk 0:00:46]}  Qb5 {[%clk 0:01:11]} 35. Red1 {[%clk 0:00:38]}  Qd7 {[%clk 0:01:09]} 36. Bxc4 {[%clk 0:00:33]}  Rc6 {[%clk 0:01:08]} 37. Rc2 {[%clk 0:00:14]}  Qxg4+ {[%clk 0:01:08]} 38. Bg3 {[%clk 0:00:13]}  Rxc4 {[%clk 0:00:59]} 39. Rxc4 {[%clk 0:00:13]}  dxc4 {[%clk 0:00:58]} 40. Rd8+ {[%clk 0:00:14]}  Kg7 {[%clk 0:00:59]} 41. Qxc4 {[%clk 0:00:14]}  Qf3+ {[%clk 0:00:56]} 42. Kh2 {[%clk 0:00:14]}  Rxb2 {[%clk 0:00:55]} 43. Qc5 {[%clk 0:00:12]}  Rxf2+ {[%clk 0:00:54]} 44. Bxf2 {[%clk 0:00:13]}  Ng4+ {[%clk 0:00:55]} 45. Kg1 {[%clk 0:00:08]}  Qxf2+ {[%clk 0:00:56]} 0-1


[Site "https://www.chess.com"]

[Event "Titled Tuesday Blitz July 18 Early 2023"]
[White "Duda, Jan-Krzysztof"]
[Black "Berezin, Viktor"]
[WhiteFideId "1170546"]
[BlackFideId "14107872"]
[WhiteElo "3016"]
[BlackElo "2510"]
[Result "1-0"]
[Round "1"]
[TimeControl "180+2"]
[Date "2023.07.18"]
[WhiteClock "0:00:06"]
[BlackClock "0:00:05"]
[Board "10"]

1. c4 {[%clk 0:03:00]}  Nf6 {[%clk 0:02:59]} 2. Nf3 {[%clk 0:02:59]}  g6 {[%clk 0:02:58]} 3. Nc3 {[%clk 0:02:58]}  Bg7 {[%clk 0:02:58]} 4. e4 {[%clk 0:02:58]}  O-O {[%clk 0:02:58]} 5. d4 {[%clk 0:02:58]}  d6 {[%clk 0:02:59]} 6. Be2 {[%clk 0:02:56]}  e5 {[%clk 0:02:59]} 7. O-O {[%clk 0:02:54]}  Na6 {[%clk 0:02:59]} 8. Re1 {[%clk 0:02:52]}  Qe8 {[%clk 0:02:54]} 9. Qc2 {[%clk 0:02:33]}  c6 {[%clk 0:02:17]} 10. h3 {[%clk 0:02:25]}  Nh5 {[%clk 0:02:08]} 11. Be3 {[%clk 0:02:23]}  f5 {[%clk 0:02:00]} 12. Rad1 {[%clk 0:02:18]}  fxe4 {[%clk 0:01:36]} 13. Nxe4 {[%clk 0:02:16]}  Bf5 {[%clk 0:01:36]} 14. Bd3 {[%clk 0:02:05]}  Nb4 {[%clk 0:01:35]} 15. Qb3 {[%clk 0:01:49]}  Nxd3 {[%clk 0:01:29]} 16. Nxd6 {[%clk 0:01:50]}  Qd7 {[%clk 0:01:21]} 17. Nxf5 {[%clk 0:01:27]}  Nxe1 {[%clk 0:01:18]} 18. Nh6+ {[%clk 0:01:27]}  Bxh6 {[%clk 0:01:11]} 19. Nxe5 {[%clk 0:01:27]}  Qg7 {[%clk 0:00:53]} 20. c5+ {[%clk 0:01:16]}  Kh8 {[%clk 0:00:53]} 21. Rxe1 {[%clk 0:01:15]}  Bxe3 {[%clk 0:00:53]} 22. Rxe3 {[%clk 0:01:10]}  Nf4 {[%clk 0:00:53]} 23. Re4 {[%clk 0:01:06]}  Nd5 {[%clk 0:00:52]} 24. Qg3 {[%clk 0:01:05]}  Rae8 {[%clk 0:00:51]} 25. Rh4 {[%clk 0:01:00]}  Re6 {[%clk 0:00:51]} 26. a3 {[%clk 0:01:00]}  Rf5 {[%clk 0:00:46]} 27. Re4 {[%clk 0:00:51]}  Kg8 {[%clk 0:00:45]} 28. b4 {[%clk 0:00:47]}  Qf8 {[%clk 0:00:42]} 29. Nd7 {[%clk 0:00:44]}  Qe7 {[%clk 0:00:37]} 30. Ne5 {[%clk 0:00:32]}  Kg7 {[%clk 0:00:37]} 31. h4 {[%clk 0:00:31]}  Nf6 {[%clk 0:00:35]} 32. Re2 {[%clk 0:00:28]}  Nh5 {[%clk 0:00:35]} 33. Qc3 {[%clk 0:00:26]}  Nf6 {[%clk 0:00:34]} 34. g3 {[%clk 0:00:23]}  Nd5 {[%clk 0:00:33]} 35. Qd2 {[%clk 0:00:22]}  h6 {[%clk 0:00:28]} 36. a4 {[%clk 0:00:21]}  g5 {[%clk 0:00:28]} 37. h5 {[%clk 0:00:20]}  g4 {[%clk 0:00:25]} 38. b5 {[%clk 0:00:20]}  Rxh5 {[%clk 0:00:22]} 39. bxc6 {[%clk 0:00:20]}  bxc6 {[%clk 0:00:23]} 40. Re4 {[%clk 0:00:20]}  Nf6 {[%clk 0:00:19]} 41. Rf4 {[%clk 0:00:17]}  Qd8 {[%clk 0:00:19]} 42. Nxg4 {[%clk 0:00:16]}  Qd5 {[%clk 0:00:19]} 43. Nh2 {[%clk 0:00:11]}  Ne4 {[%clk 0:00:18]} 44. Qb4 {[%clk 0:00:10]}  Re7 {[%clk 0:00:17]} 45. Qb8 {[%clk 0:00:10]}  Nf6 {[%clk 0:00:16]} 46. Rxf6 {[%clk 0:00:04]}  Kxf6 {[%clk 0:00:16]} 47. Qf8+ {[%clk 0:00:05]}  Qf7 {[%clk 0:00:15]} 48. Qc8 {[%clk 0:00:02]}  Kg7 {[%clk 0:00:14]} 49. Qxc6 {[%clk 0:00:02]}  Rf5 {[%clk 0:00:13]} 50. Ng4 {[%clk 0:00:02]}  h5 {[%clk 0:00:14]} 51. Qh6+ {[%clk 0:00:01]}  Kg8 {[%clk 0:00:14]} 52. Ne5 {[%clk 0:00:02]}  Rfxe5 {[%clk 0:00:14]} 53. dxe5 {[%clk 0:00:03]}  Rxe5 {[%clk 0:00:14]} 54. c6 {[%clk 0:00:03]}  Re1+ {[%clk 0:00:14]} 55. Kg2 {[%clk 0:00:04]}  Re7 {[%clk 0:00:14]} 56. Qc1 {[%clk 0:00:03]}  Qd5+ {[%clk 0:00:15]} 57. Kh2 {[%clk 0:00:03]}  Rc7 {[%clk 0:00:15]} 58. Qe3 {[%clk 0:00:04]}  Rxc6 {[%clk 0:00:15]} 59. Qxa7 {[%clk 0:00:04]}  Qf5 {[%clk 0:00:14]} 60. Qd4 {[%clk 0:00:04]}  Rf6 {[%clk 0:00:14]} 61. Kg1 {[%clk 0:00:04]}  Qf3 {[%clk 0:00:14]} 62. a5 {[%clk 0:00:04]}  Re6 {[%clk 0:00:13]} 63. Qc4 {[%clk 0:00:03]}  Kf7 {[%clk 0:00:12]} 64. a6 {[%clk 0:00:04]}  Kf6 {[%clk 0:00:13]} 65. Qd4+ {[%clk 0:00:03]}  Kf5 {[%clk 0:00:13]} 66. Qc5+ {[%clk 0:00:03]}  Re5 {[%clk 0:00:13]} 67. Qf8+ {[%clk 0:00:03]}  Ke4 {[%clk 0:00:13]} 68. Qa8+ {[%clk 0:00:03]}  Rd5 {[%clk 0:00:13]} 69. a7 {[%clk 0:00:04]}  Kd4 {[%clk 0:00:13]} 70. Qb8 {[%clk 0:00:03]}  Qd1+ {[%clk 0:00:11]} 71. Kg2 {[%clk 0:00:03]}  Qa4 {[%clk 0:00:09]} 72. a8=Q {[%clk 0:00:03]}  Qc4 {[%clk 0:00:05]} 73. Qb6+ {[%clk 0:00:03]}  Kd3 {[%clk 0:00:05]} 74. Qe3+ {[%clk 0:00:03]}  Kc2 {[%clk 0:00:05]} 75. Qaa3 {[%clk 0:00:03]}  Rd1 {[%clk 0:00:05]} 76. Kf3 {[%clk 0:00:02]}  Qc6+ {[%clk 0:00:04]} 77. Qe4+ {[%clk 0:00:02]}  Qxe4+ {[%clk 0:00:04]} 78. Kxe4 {[%clk 0:00:03]}  Re1+ {[%clk 0:00:05]} 79. Kf4 {[%clk 0:00:03]}  Rd1 {[%clk 0:00:04]} 80. Qe3 {[%clk 0:00:04]}  Rd3 {[%clk 0:00:04]} 81. Qe4 {[%clk 0:00:04]}  Kd2 {[%clk 0:00:05]} 82. Kg5 {[%clk 0:00:04]}  Rd4 {[%clk 0:00:04]} 83. Qxd4+ {[%clk 0:00:04]}  Ke2 {[%clk 0:00:05]} 84. Kxh5 {[%clk 0:00:05]}  Kf3 {[%clk 0:00:05]} 85. Kg5 {[%clk 0:00:05]}  Kg2 {[%clk 0:00:06]} 86. g4 {[%clk 0:00:06]}  Kf1 {[%clk 0:00:06]} 87. f4 {[%clk 0:00:06]}  Kg2 {[%clk 0:00:05]} 88. Qe3 {[%clk 0:00:06]} 1-0


[Site "https://www.chess.com"]

[Event "Titled Tuesday Blitz July 18 Early 2023"]
[White "Keleberda, Tymur"]
[Black "Shimanov, Aleksandr"]
[WhiteFideId "14174294"]
[BlackFideId "4198603"]
[WhiteElo "2509"]
[BlackElo "3012"]
[Result "1/2-1/2"]
[Round "1"]
[TimeControl "180+2"]
[Date "2023.07.18"]
[WhiteClock "0:00:06"]
[BlackClock "0:00:08"]
[Board "11"]

1. e4 {[%clk 0:02:57]}  c6 {[%clk 0:02:58]} 2. d4 {[%clk 0:02:57]}  d5 {[%clk 0:02:58]} 3. e5 {[%clk 0:02:57]}  Bf5 {[%clk 0:02:58]} 4. h4 {[%clk 0:02:58]}  h5 {[%clk 0:02:55]} 5. Bd3 {[%clk 0:02:58]}  Bxd3 {[%clk 0:02:55]} 6. Qxd3 {[%clk 0:02:58]}  Qa5+ {[%clk 0:02:55]} 7. Bd2 {[%clk 0:02:57]}  Qa6 {[%clk 0:02:55]} 8. e6 {[%clk 0:02:57]}  Qxd3 {[%clk 0:02:54]} 9. exf7+ {[%clk 0:02:58]}  Kxf7 {[%clk 0:02:54]} 10. cxd3 {[%clk 0:02:59]}  Nd7 {[%clk 0:02:51]} 11. Nf3 {[%clk 0:02:58]}  e6 {[%clk 0:02:49]} 12. Nc3 {[%clk 0:02:42]}  Ne7 {[%clk 0:02:38]} 13. O-O-O {[%clk 0:02:39]}  Nf5 {[%clk 0:02:38]} 14. Rde1 {[%clk 0:02:36]}  Re8 {[%clk 0:02:37]} 15. Ne2 {[%clk 0:02:30]}  Be7 {[%clk 0:02:34]} 16. Bg5 {[%clk 0:02:26]}  Bf6 {[%clk 0:02:34]} 17. Bxf6 {[%clk 0:02:24]}  gxf6 {[%clk 0:02:34]} 18. g3 {[%clk 0:02:24]}  Nf8 {[%clk 0:02:32]} 19. Kd2 {[%clk 0:02:19]}  Ng6 {[%clk 0:02:31]} 20. b4 {[%clk 0:02:14]}  a6 {[%clk 0:02:27]} 21. Rb1 {[%clk 0:02:13]}  e5 {[%clk 0:02:17]} 22. dxe5 {[%clk 0:02:13]}  Nxe5 {[%clk 0:02:16]} 23. Nfd4 {[%clk 0:01:48]}  Nxd4 {[%clk 0:02:06]} 24. Nxd4 {[%clk 0:01:49]}  Kg6 {[%clk 0:02:04]} 25. Rb2 {[%clk 0:01:38]}  Re7 {[%clk 0:01:58]} 26. a4 {[%clk 0:01:38]}  Rhe8 {[%clk 0:01:53]} 27. Rc1 {[%clk 0:01:29]}  Ng4 {[%clk 0:01:44]} 28. f3 {[%clk 0:01:28]}  Ne3 {[%clk 0:01:35]} 29. b5 {[%clk 0:01:24]}  cxb5 {[%clk 0:01:29]} 30. axb5 {[%clk 0:01:24]}  a5 {[%clk 0:01:29]} 31. b6 {[%clk 0:01:22]}  Nf5 {[%clk 0:00:57]} 32. Nxf5 {[%clk 0:00:56]}  Re2+ {[%clk 0:00:56]} 33. Kc3 {[%clk 0:00:55]}  Kxf5 {[%clk 0:00:57]} 34. Rxe2 {[%clk 0:00:44]}  Rxe2 {[%clk 0:00:58]} 35. Kd4 {[%clk 0:00:41]}  Rb2 {[%clk 0:00:55]} 36. Rc5 {[%clk 0:00:40]}  Ke6 {[%clk 0:00:38]} 37. Rxa5 {[%clk 0:00:38]}  Rxb6 {[%clk 0:00:36]} 38. Ra8 {[%clk 0:00:15]}  Rb4+ {[%clk 0:00:31]} 39. Ke3 {[%clk 0:00:15]}  Kf5 {[%clk 0:00:25]} 40. Rh8 {[%clk 0:00:14]}  Kg6 {[%clk 0:00:25]} 41. Rg8+ {[%clk 0:00:14]}  Kf7 {[%clk 0:00:26]} 42. Rh8 {[%clk 0:00:14]}  Rb5 {[%clk 0:00:22]} 43. Kd4 {[%clk 0:00:10]}  Kg6 {[%clk 0:00:17]} 44. Rd8 {[%clk 0:00:10]}  Rb1 {[%clk 0:00:15]} 45. Rxd5 {[%clk 0:00:08]}  Rg1 {[%clk 0:00:15]} 46. g4 {[%clk 0:00:07]}  hxg4 {[%clk 0:00:15]} 47. h5+ {[%clk 0:00:07]}  Kf7 {[%clk 0:00:14]} 48. fxg4 {[%clk 0:00:07]}  Rxg4+ {[%clk 0:00:14]} 49. Ke3 {[%clk 0:00:07]}  Rh4 {[%clk 0:00:13]} 50. Rb5 {[%clk 0:00:07]}  Ke6 {[%clk 0:00:13]} 51. Rb6+ {[%clk 0:00:07]}  Kf5 {[%clk 0:00:10]} 52. Rxb7 {[%clk 0:00:07]}  Rh3+ {[%clk 0:00:09]} 53. Kd4 {[%clk 0:00:06]}  Rxh5 {[%clk 0:00:04]} 54. Rb5+ {[%clk 0:00:06]}  Kg4 {[%clk 0:00:05]} 55. Rxh5 {[%clk 0:00:06]}  Kxh5 {[%clk 0:00:05]} 56. Ke3 {[%clk 0:00:06]}  Kg4 {[%clk 0:00:05]} 57. d4 {[%clk 0:00:05]}  Kf5 {[%clk 0:00:06]} 58. Kf3 {[%clk 0:00:05]}  Ke6 {[%clk 0:00:06]} 59. Ke4 {[%clk 0:00:05]}  f5+ {[%clk 0:00:06]} 60. Kf4 {[%clk 0:00:05]}  Kd5 {[%clk 0:00:07]} 61. Kxf5 {[%clk 0:00:06]}  Kxd4 {[%clk 0:00:08]} 1/2-1/2


[Site "https://www.chess.com"]

[Event "Titled Tuesday Blitz July 18 Early 2023"]
[White "Oparin, Grigoriy"]
[Black "MFatigue"]
[WhiteFideId "24125890"]
[WhiteElo "2977"]
[BlackElo "2507"]
[Result "1-0"]
[Round "1"]
[TimeControl "180+2"]
[Date "2023.07.18"]
[WhiteClock "0:01:50"]
[BlackClock "0:01:02"]
[Board "16"]

1. c4 {[%clk 0:03:00]}  c5 {[%clk 0:02:58]} 2. Nc3 {[%clk 0:03:00]}  Nf6 {[%clk 0:02:58]} 3. g3 {[%clk 0:03:00]}  d5 {[%clk 0:02:58]} 4. cxd5 {[%clk 0:03:00]}  Nxd5 {[%clk 0:02:59]} 5. Bg2 {[%clk 0:03:01]}  Nc7 {[%clk 0:02:58]} 6. Nf3 {[%clk 0:02:59]}  Nc6 {[%clk 0:02:58]} 7. a3 {[%clk 0:02:58]}  e5 {[%clk 0:02:58]} 8. b4 {[%clk 0:02:56]}  cxb4 {[%clk 0:02:48]} 9. axb4 {[%clk 0:02:57]}  Bxb4 {[%clk 0:02:45]} 10. Nxe5 {[%clk 0:02:57]}  Bxc3 {[%clk 0:02:28]} 11. Nxc6 {[%clk 0:02:57]}  bxc6 {[%clk 0:02:27]} 12. dxc3 {[%clk 0:02:34]}  Qxd1+ {[%clk 0:02:28]} 13. Kxd1 {[%clk 0:02:35]}  Bd7 {[%clk 0:02:24]} 14. Be3 {[%clk 0:02:28]}  a6 {[%clk 0:02:16]} 15. c4 {[%clk 0:02:24]}  O-O {[%clk 0:02:13]} 16. Kc2 {[%clk 0:02:24]}  Bf5+ {[%clk 0:02:03]} 17. Kc3 {[%clk 0:02:25]}  Rfc8 {[%clk 0:01:39]} 18. Rhd1 {[%clk 0:02:20]}  Ne8 {[%clk 0:01:32]} 19. Ra5 {[%clk 0:02:11]}  Be6 {[%clk 0:01:23]} 20. Bc5 {[%clk 0:02:07]}  Nf6 {[%clk 0:01:15]} 21. Rd6 {[%clk 0:02:03]}  Nd7 {[%clk 0:01:10]} 22. Be3 {[%clk 0:01:52]}  Ne5 {[%clk 0:01:02]} 23. Rxe5 {[%clk 0:01:50]} 1-0


[Site "https://www.chess.com"]

[Event "Titled Tuesday Blitz July 18 Early 2023"]
[White "Estrada Nieto, Julian"]
[Black "Kramnik, Vladimir"]
[WhiteFideId "5101018"]
[BlackFideId "4101588"]
[WhiteElo "2507"]
[BlackElo "2973"]
[Result "0-1"]
[Round "1"]
[TimeControl "180+2"]
[Date "2023.07.18"]
[WhiteClock "0:00:01"]
[BlackClock "0:00:21"]
[Board "17"]

1. e4 {[%clk 0:02:59]}  c5 {[%clk 0:02:59]} 2. Nf3 {[%clk 0:02:58]}  e6 {[%clk 0:03:00]} 3. c3 {[%clk 0:02:58]}  Nf6 {[%clk 0:02:58]} 4. e5 {[%clk 0:02:58]}  Nd5 {[%clk 0:02:58]} 5. Bc4 {[%clk 0:02:59]}  d6 {[%clk 0:02:57]} 6. d4 {[%clk 0:02:58]}  cxd4 {[%clk 0:02:57]} 7. cxd4 {[%clk 0:02:58]}  Be7 {[%clk 0:02:56]} 8. O-O {[%clk 0:02:58]}  O-O {[%clk 0:02:56]} 9. Qe2 {[%clk 0:02:57]}  b6 {[%clk 0:02:54]} 10. Bd2 {[%clk 0:02:36]}  Bb7 {[%clk 0:02:50]} 11. Nc3 {[%clk 0:02:36]}  dxe5 {[%clk 0:02:42]} 12. dxe5 {[%clk 0:02:35]}  Nxc3 {[%clk 0:02:40]} 13. Bxc3 {[%clk 0:02:35]}  Nd7 {[%clk 0:02:40]} 14. Rad1 {[%clk 0:02:29]}  Qc7 {[%clk 0:02:40]} 15. Rfe1 {[%clk 0:02:17]}  Rfd8 {[%clk 0:02:38]} 16. Bd3 {[%clk 0:02:16]}  Nf8 {[%clk 0:02:33]} 17. h4 {[%clk 0:02:05]}  h6 {[%clk 0:02:22]} 18. h5 {[%clk 0:02:00]}  Qc6 {[%clk 0:02:16]} 19. Qf1 {[%clk 0:01:49]}  Qa4 {[%clk 0:02:08]} 20. Nd4 {[%clk 0:01:19]}  a6 {[%clk 0:02:06]} 21. Bc4 {[%clk 0:01:15]}  Rac8 {[%clk 0:01:52]} 22. Bb3 {[%clk 0:01:14]}  Qe8 {[%clk 0:01:52]} 23. Qe2 {[%clk 0:01:13]}  b5 {[%clk 0:01:44]} 24. Ba5 {[%clk 0:01:02]}  Rd7 {[%clk 0:01:41]} 25. Qg4 {[%clk 0:00:57]}  Bc5 {[%clk 0:01:25]} 26. Nf3 {[%clk 0:00:53]}  Rxd1 {[%clk 0:01:22]} 27. Rxd1 {[%clk 0:00:53]}  Qc6 {[%clk 0:01:19]} 28. Bd2 {[%clk 0:00:45]}  Qe4 {[%clk 0:01:08]} 29. Qg3 {[%clk 0:00:31]}  Kh8 {[%clk 0:00:59]} 30. Re1 {[%clk 0:00:27]}  Qf5 {[%clk 0:00:57]} 31. Rc1 {[%clk 0:00:26]}  Qxh5 {[%clk 0:00:52]} 32. Bc2 {[%clk 0:00:22]}  Bxf3 {[%clk 0:00:47]} 33. gxf3 {[%clk 0:00:21]}  Bd4 {[%clk 0:00:46]} 34. Kg2 {[%clk 0:00:15]}  Qxe5 {[%clk 0:00:44]} 35. Qh4 {[%clk 0:00:09]}  Qf6 {[%clk 0:00:36]} 36. Qe4 {[%clk 0:00:07]}  Bxb2 {[%clk 0:00:32]} 37. Rh1 {[%clk 0:00:07]}  Rc4 {[%clk 0:00:27]} 38. Qd3 {[%clk 0:00:06]}  Qg6+ {[%clk 0:00:25]} 39. Qxg6 {[%clk 0:00:06]}  Nxg6 {[%clk 0:00:25]} 40. Bxg6 {[%clk 0:00:05]}  fxg6 {[%clk 0:00:25]} 41. Be3 {[%clk 0:00:05]}  Bd4 {[%clk 0:00:24]} 42. Rd1 {[%clk 0:00:05]}  e5 {[%clk 0:00:24]} 43. Bxd4 {[%clk 0:00:05]}  exd4 {[%clk 0:00:24]} 44. Re1 {[%clk 0:00:05]}  Ra4 {[%clk 0:00:22]} 45. Re8+ {[%clk 0:00:05]}  Kh7 {[%clk 0:00:21]} 46. Rd8 {[%clk 0:00:06]}  g5 {[%clk 0:00:21]} 47. Rd6 {[%clk 0:00:04]}  Rxa2 {[%clk 0:00:20]} 48. Rxd4 {[%clk 0:00:04]}  a5 {[%clk 0:00:21]} 49. Kg3 {[%clk 0:00:01]}  b4 {[%clk 0:00:21]} 0-1


[Site "https://www.chess.com"]